fUSD/lending_fUSD_20250223
["ID","MTS","AMOUNT","RATE_DAILY","PERIOD"]
[354213817,1740349885955,-500.0,0.00016931,2]
[354213818,1740349885963,-500.0,0.00016931,2]
[354213819,1740349885972,-500.0,0.00016931,2]
[354213820,1740349885982,-1543.81,0.00016931,2]
[354213821,1740349885991,-573.47,0.00016931,2]
[354213822,1740349886000,-1095.55,0.00016931,2]
[354213823,1740349886009,-649.03,0.00016931,2]
[354213824,1740349886018,-2049.23,0.00016931,2]
[354213825,1740349886027,-500.0,0.00016931,2]
[354213826,1740349886036,-646.72,0.00016931,2]
[354213827,1740349886046,-1521.96,0.00016931,2]
[354213828,1740349886055,-3220.12,0.00016931,2]
[354213829,1740349886064,-1456.53,0.00016931,2]
[354213830,1740349886073,-500.0,0.00016931,2]
[354213831,1740349886082,-500.0,0.00016931,2]
[354213832,1740349886091,-1723.53,0.00016931,2]
[354213833,1740349886100,-500.0,0.00016931,2]
[354213834,1740349886109,-2211.51,0.00016931,2]
[354213835,1740349886118,-2287.56,0.00016931,2]
[354213836,1740349886127,-1135.98,0.00016931,2]
[354213837,1740349886136,-743.91,0.00016931,2]
[354213838,1740349886146,-1305.88,0.00016931,2]
[354213839,1740349886155,-684.25,0.00016931,2]
[354213840,1740349886164,-500.0,0.00016931,2]
[354213841,1740349886174,-3463.87,0.00016931,2]
[354213842,1740349886183,-1527.29,0.00016931,2]
[354213843,1740349886193,-500.0,0.00016931,2]
[354213844,1740349886202,-641.03,0.00016931,2]
[354213845,1740349886212,-1385.92,0.00016931,2]
[354213846,1740349886221,-3565.44,0.00016931,2]
[354213847,1740349886229,-500.0,0.00016931,2]
[354213848,1740349886242,-500.0,0.00016931,2]
[354213849,1740349886251,-370.73070767,0.00016931,2]
[354213850,1740349886261,-2201.89,0.00016931,2]
[354213851,1740349886270,-500.0,0.00016931,2]
[354213852,1740349886279,-798.67,0.00016931,2]
[354213853,1740349886288,-500.0,0.00016931,2]
[354213854,1740349886297,-3735.7,0.00016931,2]
[354213855,1740349886306,-2015.41,0.00016931,2]
[354213856,1740349886315,-1466.3,0.00016931,2]
[354213857,1740349886325,-2161.56,0.00016931,2]
[354213858,1740349886334,-640.38,0.00016931,2]
[354213859,1740349886343,-1420.45,0.00016931,2]
[354213860,1740349886353,-2440.94,0.00016931,2]
[354213861,1740349886363,-2120.49,0.00016931,2]
[354213862,1740349886372,-500.0,0.00016931,2]
[354213863,1740349886381,-833.49,0.00016931,2]
[354213864,1740349886390,-1351.27,0.00016931,2]
[354213865,1740349886399,-1892.36,0.00016931,2]
[354213866,1740349886408,-1018.29,0.00016931,2]
[354213867,1740349886418,-1914.53,0.00016931,2]
[354213868,1740349886427,-751.94,0.00016931,2]
[354213869,1740349886437,-500.0,0.00016931,2]
[354213870,1740349886446,-1195.11,0.00016931,2]
[354213871,1740349886456,-2313.01,0.00016931,2]
[354213872,1740349886465,-937.55,0.00016931,2]
[354213873,1740349886475,-1603.29,0.00016931,2]
[354213874,1740349886484,-2460.28,0.00016931,2]
[354213875,1740349886493,-2684.81,0.00016931,2]
[354213876,1740349886503,-1639.9,0.00016931,2]
[354213877,1740349886515,-664.68,0.00016931,2]
[354213878,1740349886525,-640.97,0.00016931,2]
[354213879,1740349886535,-500.0,0.00016931,2]
[354213880,1740349886544,-500.0,0.00016931,2]
[354213881,1740349886555,-2460.9,0.00016931,2]
[354213882,1740349886564,-1119.51,0.00016931,2]
[354213883,1740349886574,-1461.34,0.00016931,2]
[354213884,1740349886583,-566.65,0.00016931,2]
[354213885,1740349886594,-1538.59,0.00016931,2]
[354213886,1740349886604,-878.9,0.00016931,2]
[354213887,1740349886614,-1824.04,0.00016931,2]
[354213888,1740349886623,-500.0,0.00016931,2]
[354213889,1740349886633,-1470.35,0.00016931,2]
[354213890,1740349886642,-1582.89,0.00016931,2]
[354213891,1740349886651,-2678.53,0.00016931,2]
[354213892,1740349886660,-1847.63,0.00016931,2]
[354213893,1740349886670,-769.48,0.00016931,2]
[354213894,1740349886679,-313.58892935,0.00016931,2]
[354213895,1740349886688,-554.7,0.00016931,2]
[354213896,1740349886698,-995.83,0.00016931,2]
[354213897,1740349886707,-1610.42,0.00016931,2]
[354213898,1740349886716,-500.0,0.00016931,2]
[354213899,1740349886725,-1338.31,0.00016931,2]
[354213900,1740349886735,-1308.01,0.00016931,2]
[354213901,1740349886744,-1717.52,0.00016931,2]
[354213902,1740349886753,-3188.14,0.00016931,2]
[354213903,1740349886762,-3533.31,0.00016931,2]
[354213904,1740349886771,-500.0,0.00016931,2]
[354213905,1740349886781,-1861.78,0.00016931,2]
[354213906,1740349886790,-8417.52,0.00016931,2]
[354213907,1740349886800,-2577.89,0.00016931,2]
[354213908,1740349886809,-500.0,0.00016931,2]
[354213909,1740349886818,-500.0,0.00016931,2]
[354213910,1740349886827,-500.0,0.00016931,2]
[354213911,1740349886836,-4381.0,0.00016931,2]
[354213912,1740349886846,-596.64,0.00016931,2]
[354213913,1740349886855,-2183.26,0.00016931,2]
[354213914,1740349886865,-1528.29,0.00016931,2]
[354213915,1740349886874,-1092.71,0.00016931,2]
[354213916,1740349886883,-554.44,0.00016931,2]
[354213917,1740349886893,-1946.14,0.00016931,2]
[354213918,1740349886902,-2935.59,0.00016931,2]
[354213919,1740349886911,-7337.03,0.00016931,2]
[354213920,1740349886922,-1364.9,0.00016931,2]
[354213921,1740349886932,-1174.78,0.00016931,2]
[354213922,1740349886941,-1276.51,0.00016931,2]
[354213923,1740349886951,-500.0,0.00016931,2]
[354213924,1740349886961,-620.99,0.00016931,2]
[354213925,1740349886970,-1306.34,0.00016931,2]
[354213926,1740349886980,-932.88,0.00016931,2]
[354213927,1740349886989,-2300.34,0.00016931,2]
[354213928,1740349886998,-980.06,0.00016931,2]
[354213929,1740349887007,-1469.11,0.00016931,2]
[354213930,1740349887016,-544.26,0.00016931,2]
[354213931,1740349887025,-2856.88,0.00016931,2]
[354213932,1740349887035,-4641.82,0.00016931,2]
[354213933,1740349887045,-500.0,0.00016931,2]
[354213934,1740349887056,-2638.63,0.00016931,2]
[354213935,1740349887066,-3029.62,0.00016931,2]
[354213936,1740349887077,-500.0,0.00016931,2]
[354213937,1740349887088,-2673.9,0.00016931,2]
[354213938,1740349887098,-353.37840522,0.00016931,2]
[354213939,1740349887107,-500.0,0.00016931,2]
[354213940,1740349887117,-500.0,0.00016931,2]
[354213941,1740349887129,-612.94,0.00016931,2]
[354213942,1740349887139,-3094.41,0.00016931,2]
[354213943,1740349887148,-2414.59,0.00016931,2]
[354213944,1740349887158,-296.41336104,0.00016931,2]
[354213945,1740349887167,-500.0,0.00016931,2]
[354213946,1740349887176,-693.42,0.00016931,2]
[354213947,1740349887185,-2972.96,0.00016931,2]
[354213948,1740349887194,-1574.92,0.00016931,2]
[354213949,1740349887203,-1174.07,0.00016931,2]
[354213950,1740349887213,-5022.74,0.00016931,2]
[354213951,1740349887222,-647.87,0.00016931,2]
[354213952,1740349887232,-500.0,0.00016931,2]
[354213953,1740349887241,-906.72,0.00016931,2]
[354213954,1740349887251,-500.0,0.00016931,2]
[354213955,1740349887260,-796.67,0.00016931,2]
[354213956,1740349887269,-500.0,0.00016931,2]
[354213957,1740349887278,-500.0,0.00016931,2]
[354213958,1740349887287,-5290.33,0.00016931,2]
[354213959,1740349887296,-1436.11,0.00016931,2]
[354213960,1740349887305,-500.0,0.00016931,2]
[354213961,1740349887315,-1349.8,0.00016931,2]
[354213962,1740349887324,-6290.39,0.00016931,2]
[354213963,1740349887333,-758.05,0.00016931,2]
[354213964,1740349887342,-2671.9,0.00016931,2]
[354213965,1740349887352,-2196.52,0.00016931,2]
[354213966,1740349887360,-5756.72,0.00016931,2]
[354213967,1740349887370,-4403.16,0.00016931,2]
[354213968,1740349887379,-2749.58,0.00016931,2]
[354213969,1740349887388,-5706.29,0.00016931,2]
[354213970,1740349887397,-526.21,0.00016931,2]
[354213971,1740349887407,-555.29,0.00016931,2]
[354213972,1740349887416,-250.92810559,0.00016931,2]
[354213973,1740349887426,-2415.31,0.00016931,2]
[354213974,1740349887436,-500.0,0.00016931,2]
[354213975,1740349887445,-3407.13,0.00016931,2]
[354213976,1740349887455,-1418.97,0.00016931,2]
[354213977,1740349887464,-4562.56,0.00016931,2]
[354213978,1740349887473,-760.69,0.00016931,2]
[354213979,1740349887483,-500.0,0.00016931,2]
[354213980,1740349887492,-1428.34,0.00016931,2]
[354213981,1740349887501,-874.66,0.00016931,2]
[354213982,1740349887512,-2154.67,0.00016931,2]
[354213983,1740349887527,-4107.53,0.00016931,2]
[354213984,1740349887536,-1576.33,0.00016931,2]
[354213985,1740349887545,-1748.41,0.00016931,2]
[354213986,1740349887554,-500.0,0.00016931,2]
[354213987,1740349887564,-17475.75,0.00016931,2]
[354213988,1740349887574,-500.0,0.00016931,2]
[354213989,1740349887584,-4070.64,0.00016931,2]
[354213990,1740349887593,-2786.27,0.00016931,2]
[354213991,1740349887603,-3159.81,0.00016931,2]
[354213992,1740349887613,-924.33,0.00016931,2]
[354213993,1740349887623,-1525.63,0.00016931,2]
[354213994,1740349887632,-709.02,0.00016931,2]
[354213995,1740349887642,-2272.18,0.00016931,2]
[354213996,1740349887652,-3619.7,0.00016931,2]
[354213997,1740349887661,-4642.12,0.00016931,2]
[354213998,1740349887671,-1679.7,0.00016931,2]
[354213999,1740349887682,-4720.68,0.00016931,2]
[354214000,1740349887692,-500.0,0.00016931,2]
[354214001,1740349887701,-1571.13,0.00016931,2]
[354214002,1740349887711,-3290.16,0.00016931,2]
[354214003,1740349887721,-3917.01,0.00016931,2]
[354214004,1740349887731,-1753.32,0.00016931,2]
[354214005,1740349887740,-4787.87,0.00016931,2]
[354214006,1740349887751,-2096.04,0.00016931,2]
[354214007,1740349887761,-3809.91,0.00016931,2]
[354214008,1740349887771,-683.81,0.00016931,2]
[354214009,1740349887781,-2412.36,0.00016931,2]
[354214010,1740349887791,-4433.62,0.00016931,2]
[354214011,1740349887802,-645.38,0.00016931,2]
[354214012,1740349887812,-1929.52,0.00016931,2]
[354214013,1740349887822,-2294.55,0.00016931,2]
[354214014,1740349887832,-1697.61,0.00016931,2]
[354214015,1740349887842,-3462.11,0.00016931,2]
[354214016,1740349887852,-707.43,0.00016931,2]
[354214017,1740349887862,-5621.54,0.00016931,2]
[354214018,1740349887872,-3914.54,0.00016931,2]
[354214019,1740349887882,-4223.13,0.00016931,2]
[354214020,1740349887892,-2913.24,0.00016931,2]
[354214021,1740349887902,-500.0,0.00016931,2]
[354214022,1740349887912,-3601.17,0.00016931,2]
[354214023,1740349887922,-500.0,0.00016931,2]
[354214024,1740349887931,-1208.42,0.00016931,2]
[354214025,1740349887941,-2154.42,0.00016931,2]
[354214026,1740349887951,-7088.97,0.00016931,2]
[354214027,1740349887961,-500.0,0.00016931,2]
[354214028,1740349887971,-2016.18,0.00016931,2]
[354214029,1740349887980,-4814.39,0.00016931,2]
[354214030,1740349887990,-555.25956207,0.00016931,2]
[354214031,1740349887999,-5139.97,0.00016931,2]
[354214032,1740349888009,-444.61814928,0.00016931,2]
[354214033,1740349888020,-4721.46,0.00016931,2]
[354214034,1740349888031,-3404.92,0.00016931,2]
[354214035,1740349888042,-4384.06,0.00016931,2]
[354214036,1740349888052,-1606.48,0.00016931,2]
[354214037,1740349888061,-500.0,0.00016931,2]
[354214038,1740349888071,-4219.29,0.00016931,2]
[354214039,1740349888081,-500.0,0.00016931,2]
[354214040,1740349888090,-2226.1,0.00016931,2]
[354214041,1740349888100,-703.07,0.00016931,2]
[354214042,1740349888113,-500.0,0.00016931,2]
[354214043,1740349888123,-3249.4,0.00016931,2]
[354214044,1740349888133,-500.0,0.00016931,2]
[354214045,1740349888143,-500.0,0.00016931,2]
[354214046,1740349888153,-500.0,0.00016931,2]
[354214047,1740349888163,-1604.38,0.00016931,2]
[354214048,1740349888172,-5239.84,0.00016931,2]
[354214049,1740349888183,-2505.1,0.00016931,2]
[354214050,1740349888192,-585.37,0.00016931,2]
[354214051,1740349888202,-1246.44,0.00016931,2]
[354214052,1740349888212,-2941.8,0.00016931,2]
[354214053,1740349888221,-1295.66,0.00016931,2]
[354214054,1740349888231,-5072.55,0.00016931,2]
[354214055,1740349888241,-9201.19,0.00016931,2]
[354214056,1740349888250,-3681.18,0.00016931,2]
[354214057,1740349888259,-2612.84,0.00016931,2]
[354214058,1740349888269,-3774.54,0.00016931,2]
[354214059,1740349888279,-948.51,0.00016931,2]
[354214060,1740349888289,-3562.07,0.00016931,2]
[354214061,1740349888299,-6253.12,0.00016931,2]
[354214062,1740349888308,-1983.96,0.00016931,2]
[354214063,1740349888317,-930.43,0.00016931,2]
[354214064,1740349888327,-526.95,0.00016931,2]
[354214065,1740349888337,-1344.51,0.00016931,2]
[354214066,1740349888346,-500.0,0.00016931,2]
[354214067,1740349888356,-500.0,0.00016931,2]
[354214068,1740349888365,-1412.39,0.00016931,2]
[354214069,1740349888375,-4716.74,0.00016931,2]
[354214070,1740349888385,-4536.23,0.00016931,2]
[354214071,1740349888395,-5993.06,0.00016931,2]
[354214072,1740349888404,-500.0,0.00016931,2]
[354214073,1740349888414,-500.0,0.00016931,2]
[354214074,1740349888424,-500.0,0.00016931,2]
[354214075,1740349888433,-1885.48,0.00016931,2]
[354214076,1740349888443,-500.0,0.00016931,2]
[354214077,1740349888453,-500.0,0.00016931,2]
[354214078,1740349888463,-3479.65,0.00016931,2]
[354214079,1740349888472,-500.0,0.00016931,2]
[354214080,1740349888482,-1400.03,0.00016931,2]
[354214081,1740349888492,-6049.51,0.00016931,2]
[354214082,1740349888502,-153.6800829,0.00016931,2]
[354214083,1740349888511,-4633.59,0.00016931,2]
[354214084,1740349888525,-3476.34,0.00016931,2]
[354214085,1740349888534,-3140.36,0.00016931,2]
[354214086,1740349888544,-500.0,0.00016931,2]
[354214087,1740349888555,-409.34978166,0.00016931,2]
[354214088,1740349888564,-2481.53,0.00016931,2]
[354214089,1740349888573,-8851.15,0.00016931,2]
[354214090,1740349888582,-500.0,0.00016931,2]
[354214091,1740349888593,-500.0,0.00016931,2]
[354214092,1740349888603,-500.0,0.00016931,2]
[354214093,1740349888613,-2581.76,0.00016931,2]
[354214094,1740349888623,-2181.78,0.00016931,2]
[354214095,1740349888632,-2756.2,0.00016931,2]
[354214096,1740349888643,-500.0,0.00016931,2]
[354214097,1740349888653,-3980.89,0.00016931,2]
[354214098,1740349888662,-1745.58,0.00016931,2]
[354214099,1740349888672,-500.0,0.00016931,2]
[354214100,1740349888682,-5532.19,0.00016931,2]
[354214101,1740349888692,-657.2,0.00016931,2]
[354214102,1740349888701,-2341.48,0.00016931,2]
[354214103,1740349888711,-500.0,0.00016931,2]
[354214104,1740349888721,-667.62,0.00016931,2]
[354214105,1740349888730,-4890.16,0.00016931,2]
[354214106,1740349888740,-500.0,0.00016931,2]
[354214107,1740349888750,-2345.07,0.00016931,2]
[354214108,1740349888760,-500.0,0.00016931,2]
[354214109,1740349888770,-1229.42,0.00016931,2]
[354214110,1740349888780,-517.65,0.00016931,2]
[354214111,1740349888789,-1325.19,0.00016931,2]
[354214112,1740349888799,-500.67,0.00016931,2]
[354214113,1740349888808,-973.9,0.00016931,2]
[354214114,1740349888817,-644.39,0.00016931,2]
[354214115,1740349888827,-3825.62,0.00016931,2]
[354214116,1740349888836,-5219.19,0.00016931,2]
[354214117,1740349888846,-3401.5,0.00016931,2]
[354214118,1740349888855,-1228.65,0.00016931,2]
[354214119,1740349888864,-503.96956877,0.00016931,2]
[354214120,1740349888874,-9468.28,0.00016931,2]
[354214121,1740349888883,-1584.73,0.00016931,2]
[354214122,1740349888893,-500.0,0.00016931,2]
[354214123,1740349888903,-500.0,0.00016931,2]
[354214124,1740349888912,-1099.0,0.00016931,2]
[354214125,1740349888922,-200.0,0.00016936,2]
[354214126,1740349888931,-730.7,0.00016958,2]
[354214127,1740349888941,-1099.0,0.00016959,2]
[354214128,1740349888952,-220.0,0.00016976,2]
[354214129,1740349888962,-1099.0,0.00016986,2]
[354214130,1740349888972,-3818.0,0.00016986,3]
[354214131,1740349888982,-200.0,0.00017,7]
[354214132,1740349888992,-567.68,0.00017013,2]
[354214133,1740349889001,-500.0,0.00017013,2]
[354214134,1740349889010,-500.0,0.00017013,2]
[354214135,1740349889020,-500.0,0.00017013,2]
[354214136,1740349889029,-1093.12,0.00017013,2]
[354214137,1740349889039,-1156.11,0.00017013,2]
[354214138,1740349889048,-1348.02,0.00017013,2]
[354214139,1740349889057,-500.0,0.00017013,2]
[354214140,1740349889067,-895.6,0.00017013,2]
[354214141,1740349889076,-516.81,0.00017013,2]
[354214142,1740349889086,-915.35,0.00017013,2]
[354214143,1740349889095,-500.0,0.00017013,2]
[354214144,1740349889105,-323.19250408,0.00017013,2]
[354214145,1740349889115,-500.0,0.00017013,2]
[354214146,1740349889124,-1694.17,0.00017013,2]
[354214147,1740349889133,-1649.69,0.00017013,2]
[354214148,1740349889143,-500.0,0.00017013,2]
[354214149,1740349889153,-681.06,0.00017013,2]
[354214150,1740349889162,-793.26,0.00017013,2]
[354214151,1740349889172,-500.0,0.00017013,2]
[354214152,1740349889182,-500.0,0.00017013,2]
[354214153,1740349889191,-517.04230863,0.00017013,2]
[354214154,1740349889201,-500.0,0.00017013,2]
[354214155,1740349889210,-500.0,0.00017013,2]
[354214156,1740349889220,-645.41,0.00017013,2]
[354214157,1740349889229,-500.0,0.00017013,2]
[354214158,1740349889239,-523.26,0.00017013,2]
[354214159,1740349889248,-798.0,0.00017013,2]
[354214160,1740349889258,-500.0,0.00017013,2]
[354214161,1740349889267,-500.0,0.00017013,2]
[354214162,1740349889277,-1129.2,0.00017013,2]
[354214163,1740349889286,-500.0,0.00017013,2]
[354214164,1740349889295,-500.0,0.00017013,2]
[354214165,1740349889304,-500.0,0.00017013,2]
[354214166,1740349889314,-500.0,0.00017013,2]
[354214167,1740349889324,-500.0,0.00017013,2]
[354214168,1740349889333,-1431.86,0.00017013,2]
[354214169,1740349889343,-1421.57,0.00017013,2]
[354214170,1740349889353,-500.0,0.00017013,2]
[354214171,1740349889362,-500.0,0.00017013,2]
[354214172,1740349889371,-500.0,0.00017013,2]
[354214173,1740349889381,-500.0,0.00017013,2]
[354214174,1740349889390,-500.0,0.00017013,2]
[354214175,1740349889399,-763.43,0.00017013,2]
[354214176,1740349889409,-863.75,0.00017013,2]
[354214177,1740349889418,-1090.21,0.00017013,2]
[354214178,1740349889427,-500.0,0.00017013,2]
[354214179,1740349889437,-649.37,0.00017013,2]
[354214180,1740349889446,-609.6,0.00017013,2]
[354214181,1740349889456,-500.0,0.00017013,2]
[354214182,1740349889465,-1597.72,0.00017013,2]
[354214183,1740349889475,-500.0,0.00017013,2]
[354214184,1740349889486,-500.0,0.00017013,2]
[354214185,1740349889497,-500.0,0.00017013,2]
[354214186,1740349889507,-1440.9,0.00017013,2]
[354214187,1740349889520,-500.0,0.00017013,2]
[354214188,1740349889529,-592.49,0.00017013,2]
[354214189,1740349889539,-1192.98,0.00017013,2]
[354214190,1740349889548,-500.0,0.00017013,2]
[354214191,1740349889558,-500.0,0.00017013,2]
[354214192,1740349889567,-500.0,0.00017013,2]
[354214193,1740349889577,-1240.88,0.00017013,2]
[354214194,1740349889586,-782.65,0.00017013,2]
[354214195,1740349889596,-1118.85,0.00017013,2]
[354214196,1740349889606,-500.0,0.00017013,2]
[354214197,1740349889615,-500.0,0.00017013,2]
[354214198,1740349889626,-500.0,0.00017013,2]
[354214199,1740349889635,-1621.04,0.00017013,2]
[354214200,1740349889645,-614.67,0.00017013,2]
[354214201,1740349889654,-1198.36,0.00017013,2]
[354214202,1740349889664,-500.0,0.00017013,2]
[354214203,1740349889674,-608.12,0.00017013,2]
[354214204,1740349889684,-671.15,0.00017013,2]
[354214205,1740349889694,-564.11,0.00017013,2]
[354214206,1740349889704,-500.0,0.00017013,2]
[354214207,1740349889714,-500.0,0.00017013,2]
[354214208,1740349889724,-500.0,0.00017013,2]
[354214209,1740349889734,-500.0,0.00017013,2]
[354214210,1740349890015,-500.0,0.00017013,2]
[354214211,1740349890025,-904.88,0.00017013,2]
[354214212,1740349890035,-311.38290706,0.00017013,2]
[354214213,1740349890044,-500.0,0.00017013,2]
[354214214,1740349890053,-252.41071253,0.00017013,2]
[354214215,1740349890063,-531.89245058,0.00017013,2]
[354214216,1740349890076,-503.91,0.00017013,2]
[354214217,1740349890085,-500.0,0.00017013,2]
[354214218,1740349890095,-500.0,0.00017013,2]
[354214219,1740349890104,-500.0,0.00017013,2]
[354214220,1740349890114,-679.91,0.00017013,2]
[354214221,1740349890123,-550.2,0.00017013,2]
[354214222,1740349890133,-795.19,0.00017013,2]
[354214223,1740349890143,-500.0,0.00017013,2]
[354214224,1740349890153,-1739.38,0.00017013,2]
[354214225,1740349890162,-748.37,0.00017013,2]
[354214226,1740349890172,-500.0,0.00017013,2]
[354214227,1740349890182,-708.49,0.00017013,2]
[354214228,1740349890193,-620.41,0.00017013,2]
[354214229,1740349890204,-500.0,0.00017013,2]
[354214230,1740349890214,-500.0,0.00017013,2]
[354214231,1740349890224,-500.0,0.00017013,2]
[354214232,1740349890235,-500.0,0.00017013,2]
[354214233,1740349890246,-500.0,0.00017013,2]
[354214234,1740349890256,-677.65,0.00017013,2]
[354214235,1740349890267,-681.58,0.00017013,2]
[354214236,1740349890277,-500.0,0.00017013,2]
[354214237,1740349890288,-514.07,0.00017013,2]
[354214238,1740349890299,-1558.42,0.00017013,2]
[354214239,1740349890309,-500.0,0.00017013,2]
[354214240,1740349890319,-500.0,0.00017013,2]
[354214241,1740349890329,-602.81,0.00017013,2]
[354214242,1740349890339,-1016.25,0.00017013,2]
[354214243,1740349890348,-500.0,0.00017013,2]
[354214244,1740349890358,-500.0,0.00017013,2]
[354214245,1740349890367,-500.0,0.00017013,2]
[354214246,1740349890377,-565.85,0.00017013,2]
[354214247,1740349890386,-500.0,0.00017013,2]
[354214248,1740349890396,-165.91970951,0.00017013,2]
[354214249,1740349890405,-708.16,0.00017013,2]
[354214250,1740349890415,-500.0,0.00017013,2]
[354214251,1740349890425,-500.0,0.00017013,2]
[354214252,1740349890435,-512.95,0.00017013,2]
[354214253,1740349890444,-500.0,0.00017013,2]
[354214254,1740349890454,-563.72,0.00017013,2]
[354214255,1740349890463,-1362.33,0.00017013,2]
[354214256,1740349890473,-500.0,0.00017013,2]
[354214257,1740349890482,-485.32242867,0.00017013,2]
[354214258,1740349890492,-1012.62,0.00017013,2]
[354214259,1740349890501,-1837.84,0.00017013,2]
[354214260,1740349890512,-2529.64,0.00017013,2]
[354214261,1740349890525,-500.0,0.00017013,2]
[354214262,1740349890534,-500.0,0.00017013,2]
[354214263,1740349890543,-500.0,0.00017013,2]
[354214264,1740349890553,-500.0,0.00017013,2]
[354214265,1740349890563,-783.76,0.00017013,2]
[354214266,1740349890572,-545.27,0.00017013,2]
[354214267,1740349890582,-517.41454381,0.00017013,2]
[354214268,1740349890592,-1030.81,0.00017013,2]
[354214269,1740349890602,-500.37,0.00017013,2]
[354214270,1740349890611,-500.0,0.00017013,2]
[354214271,1740349890620,-717.32,0.00017013,2]
[354214272,1740349890629,-797.57,0.00017013,2]
[354214273,1740349890638,-578.44,0.00017013,2]
[354214274,1740349890647,-500.0,0.00017013,2]
[354214275,1740349890656,-756.75,0.00017013,2]
[354214276,1740349890665,-1497.62,0.00017013,2]
[354214277,1740349890675,-1770.57,0.00017013,2]
[354214278,1740349890685,-784.78,0.00017013,2]
[354214279,1740349890694,-1765.88,0.00017013,2]
[354214280,1740349890703,-2582.73,0.00017013,2]
[354214281,1740349890712,-500.0,0.00017013,2]
[354214282,1740349890722,-564.37,0.00017013,2]
[354214283,1740349890731,-1422.48,0.00017013,2]
[354214284,1740349890741,-500.0,0.00017013,2]
[354214285,1740349890750,-2229.59,0.00017013,2]
[354214286,1740349890759,-500.0,0.00017013,2]
[354214287,1740349890768,-1800.36,0.00017013,2]
[354214288,1740349890778,-366.33853723,0.00017013,2]
[354214289,1740349890788,-500.0,0.00017013,2]
[354214290,1740349890797,-2222.23,0.00017013,2]
[354214291,1740349890807,-500.0,0.00017013,2]
[354214292,1740349890817,-500.0,0.00017013,2]
[354214293,1740349890826,-545.15500431,0.00017013,2]
[354214294,1740349890835,-500.0,0.00017013,2]
[354214295,1740349890845,-564.96,0.00017013,2]
[354214296,1740349890855,-500.0,0.00017013,2]
[354214297,1740349890864,-681.63,0.00017013,2]
[354214298,1740349890873,-558.55,0.00017013,2]
[354214299,1740349890882,-500.0,0.00017013,2]
[354214300,1740349890891,-500.0,0.00017013,2]
[354214301,1740349890901,-1629.15,0.00017013,2]
[354214302,1740349890910,-1542.47,0.00017013,2]
[354214303,1740349890920,-561.05,0.00017013,2]
[354214304,1740349890929,-738.85,0.00017013,2]
[354214305,1740349890939,-2269.58,0.00017013,2]
[354214306,1740349890948,-868.84,0.00017013,2]
[354214307,1740349890957,-1335.0,0.00017013,2]
[354214308,1740349890967,-1672.07,0.00017013,2]
[354214309,1740349890976,-2109.65,0.00017013,2]
[354214310,1740349890985,-521.95551163,0.00017013,2]
[354214311,1740349890994,-1086.37,0.00017013,2]
[354214312,1740349891003,-1704.59,0.00017013,2]
[354214313,1740349891012,-691.82,0.00017013,2]
[354214314,1740349891023,-1370.41,0.00017013,2]
[354214315,1740349891032,-500.0,0.00017013,2]
[354214316,1740349891041,-781.08,0.00017013,2]